fUSD/lending_fUSD_20260406
["ID","MTS","AMOUNT","RATE_DAILY","PERIOD"]
[419879373,1775460641241,-1115.26393771,0.00014426,2]
[419879374,1775460641250,-1137.26597513,0.00014426,2]
[419879375,1775460641260,-1123.25704467,0.00014426,2]
[419879376,1775460641270,-11722.1695,0.00014435,2]
[419879377,1775460641280,-17203.21351983,0.00014454,2]
[419879378,1775460641289,-152.0,0.00014467,21]
[419879379,1775460641299,-1044.24672784,0.00014468,2]
[419879380,1775460641309,-511.33728453,0.00014468,2]
[419879381,1775460641319,-1500.0,0.00014468,2]
[419879382,1775460641330,-1500.0,0.00014468,2]
[419879383,1775460641340,-12216.09645743,0.00014478,2]
[419879384,1775460641350,-204.31990126,0.00014486,2]
[419879385,1775460641359,-938.34,0.00014493,2]
[419879386,1775460641369,-2189.39004588,0.00014529,2]
[419879387,1775460641379,-152.0,0.00014545,22]
[419879388,1775460641389,-152.0,0.00014622,23]
[419879389,1775460641398,-634.23081963,0.00014675,2]
[419879390,1775460641408,-240.173586,0.00014677,2]
[419879391,1775460641418,-276.050815,0.00014677,7]
[419879392,1775460641428,-152.0,0.00014699,24]
[419879393,1775460641438,-2811.0,0.0001472,2]
[419879394,1775460641449,-17203.21351983,0.00014743,2]
[419879395,1775460641458,-938.34,0.00014767,2]
[419879396,1775460641468,-158.46,0.00014772,2]
[419879397,1775460641478,-152.0,0.00014777,25]
[419879398,1775460641487,-152.0,0.00014854,26]
[419879399,1775460641497,-500.0,0.00014912,2]
[419879400,1775460641506,-500.0,0.00014912,2]
[419879401,1775460641516,-152.0,0.00014932,27]
[419879402,1775460641526,-300.0,0.00015,2]
[419879403,1775460641535,-152.0,0.00015009,28]
[419879404,1775460641545,-1000.0,0.00015016,2]
[419879405,1775460641554,-1000.0,0.00015016,2]
[419879406,1775460641564,-1643.83087248,0.00015032,2]
[419879407,1775460641581,-809.73291563,0.00015032,2]
[419879408,1775460641598,-622.153193,0.00015032,2]
[419879409,1775460641613,-2426.4876483,0.00015032,2]
[419879410,1775460641662,-11701.00889042,0.00015032,2]
[419879411,1775460641672,-938.34,0.00015041,2]
[419879412,1775460641682,-2000.0,0.00015058,2]
[419879413,1775460641692,-500.0,0.00015058,2]
[419879414,1775460641701,-900.0,0.00015068,2]
[419879415,1775460641711,-152.0,0.00015087,29]
[419879416,1775460641721,-490.0,0.00015126,2]
[419879417,1775460641730,-152.0,0.00015164,30]
[419879418,1775460641740,-3000.0,0.00015178,2]
[419879419,1775460641750,-1600.0,0.00015178,2]
[419879420,1775460641760,-550.64720815,0.00015196,2]
[419879421,1775460641772,-27.56203493,0.00015196,2]
[419879422,1775460641782,-695.39793187,0.00015196,2]
[419879423,1775460641792,-500.0,0.00015196,2]
[419879424,1775460641802,-500.0,0.00015196,2]
[419879425,1775460641811,-200.0,0.00015196,2]
[419879426,1775460641821,-500.0,0.00015196,2]
[419879427,1775460641830,-500.0,0.00015196,2]
[419879428,1775460641840,-500.0,0.00015196,2]
[419879429,1775460641849,-500.0,0.00015196,2]
[419879430,1775460641859,-500.0,0.00015196,2]
[419879431,1775460641868,-500.0,0.00015196,2]
[419879432,1775460641878,-500.0,0.00015196,2]
[419879433,1775460641888,-500.0,0.00015196,2]
[419879434,1775460641897,-500.0,0.00015196,2]
[419879435,1775460641907,-500.0,0.00015196,2]
[419879436,1775460641916,-500.0,0.00015196,2]
[419879437,1775460641926,-743.50770149,0.00015196,2]
[419879438,1775460641935,-285.9361239,0.00015196,2]
[419879439,1775460641945,-174.61919141,0.00015196,2]
[419879440,1775460641954,-152.0,0.00015242,31]
[419879441,1775460641964,-500.0,0.00015251,2]
[419879442,1775460641973,-500.0,0.00015306,2]
[419879443,1775460641983,-2000.0,0.00015311,2]
[419879444,1775460641992,-938.35199746,0.00015315,2]
[419879445,1775460642002,-152.0,0.00015319,32]
[419879446,1775460642011,-1123.61085282,0.00015322,2]
[419879447,1775460642023,-2890.96426327,0.00015322,2]
[419879448,1775460642035,-2418.07525,0.00015322,2]
[419879455,1775460642389,-1000.0,0.00013297,2]
[419879456,1775460642399,-500.0,0.00013397,2]
[419879457,1775460642410,-202.634794,0.00013977,7]
[419879458,1775460642420,-245.269588,0.00013977,7]
[419879459,1775460642431,-10770.56315374,0.00015322,2]
[419879460,1775460642441,-507.0,0.0001533,3]
[419879461,1775460642451,-500.0,0.00015361,2]
[419879462,1775460642460,-152.0,0.00015397,33]
[419879463,1775460642469,-7889.9526786,0.000154,5]
[419879464,1775460642485,-2129.56782122,0.000154,5]
[419879465,1775460642513,-6080.47950018,0.000154,5]
[419879466,1775460642523,-209.8547,0.000154,2]
[419879467,1775460642532,-500.0,0.00015416,2]
[419879468,1775460642541,-55430.0,0.00015425,2]
[419879469,1775460642552,-158.46,0.00015444,2]
[419879470,1775460642562,-500.0,0.00015452,2]
[419879471,1775460642572,-500.0,0.00015452,2]
[419879472,1775460642581,-500.0,0.00015452,2]
[419879473,1775460642592,-500.0,0.00015452,2]
[419879474,1775460642602,-500.0,0.00015452,2]
[419879475,1775460642612,-500.0,0.00015452,2]
[419879476,1775460642622,-500.0,0.00015452,2]
[419879477,1775460642632,-500.0,0.00015452,2]
[419879478,1775460642642,-500.0,0.00015452,2]
[419879479,1775460642653,-500.0,0.00015452,2]
[419879480,1775460642663,-500.0,0.00015452,2]
[419879481,1775460642673,-500.0,0.00015452,2]
[419879482,1775460642683,-500.0,0.00015452,2]
[419879483,1775460642692,-500.0,0.00015452,2]
[419879484,1775460642703,-500.0,0.00015452,2]
[419879485,1775460642712,-500.0,0.00015452,2]
[419879486,1775460642722,-500.0,0.00015452,2]
[419879487,1775460642732,-500.0,0.00015452,2]
[419879488,1775460642741,-500.0,0.00015452,2]
[419879489,1775460642751,-500.0,0.00015452,2]
[419879490,1775460642761,-500.0,0.00015452,2]
[419879491,1775460642771,-500.0,0.00015452,2]
[419879493,1775460643131,-500.0,0.00015452,2]
[419879494,1775460643142,-500.0,0.00015452,2]
[419879495,1775460643153,-500.0,0.00015452,2]
[419879496,1775460643164,-500.0,0.00015452,2]
[419879497,1775460643175,-500.0,0.00015452,2]
[419879498,1775460643185,-500.0,0.00015452,2]
[419879499,1775460643196,-500.0,0.00015452,2]
[419879500,1775460643207,-500.0,0.00015452,2]
[419879501,1775460643217,-500.0,0.00015452,2]
[419879503,1775460643228,-500.0,0.00015452,2]
[419879505,1775460643238,-500.0,0.00015452,2]
[419879506,1775460643248,-500.0,0.00015452,2]
[419879508,1775460643259,-500.0,0.00015452,2]
[419879510,1775460643269,-500.0,0.00015452,2]
[419879511,1775460643279,-500.0,0.00015452,2]
[419879512,1775460643288,-500.0,0.00015452,2]
[419879513,1775460643298,-500.0,0.00015452,2]
[419879514,1775460643308,-500.0,0.00015452,2]
[419879515,1775460643318,-500.0,0.00015452,2]
[419879516,1775460643328,-500.0,0.00015452,2]
[419879517,1775460643339,-500.0,0.00015452,2]
[419879518,1775460643348,-500.0,0.00015452,2]
[419879519,1775460643359,-500.0,0.00015452,2]
[419879520,1775460643369,-500.0,0.00015452,2]
[419879521,1775460643380,-500.0,0.00015452,2]
[419879522,1775460643390,-500.0,0.00015452,2]
[419879523,1775460643401,-500.0,0.00015471,2]
[419879524,1775460643411,-528.51181699,0.00015473,2]
[419879525,1775460643421,-500.0,0.00015473,2]
[419879526,1775460643431,-500.0,0.00015473,2]
[419879527,1775460643441,-500.0,0.00015473,2]
[419879528,1775460643452,-501.89312108,0.00015473,2]
[419879529,1775460643463,-500.0,0.00015473,2]
[419879530,1775460643472,-501.75332835,0.00015473,2]
[419879531,1775460643483,-500.0,0.00015473,2]
[419879532,1775460643493,-500.0,0.00015473,2]
[419879533,1775460643503,-500.0,0.00015473,2]
[419879534,1775460643513,-500.0,0.00015473,2]
[419879535,1775460643523,-500.0,0.00015473,2]
[419879536,1775460643533,-500.0,0.00015473,2]
[419879537,1775460643544,-500.0,0.00015473,2]
[419879538,1775460643554,-500.0,0.00015473,2]
[419879539,1775460643564,-722.0,0.00015473,2]
[419879540,1775460643574,-500.0,0.00015473,2]
[419879541,1775460643584,-500.0,0.00015473,2]
[419879542,1775460643596,-500.0,0.00015473,2]
[419879543,1775460643606,-500.0,0.00015473,2]
[419879544,1775460643616,-500.0,0.00015473,2]
[419879545,1775460643626,-500.0,0.00015473,2]
[419879546,1775460643636,-500.0,0.00015473,2]
[419879547,1775460643647,-500.0,0.00015473,2]
[419879548,1775460643657,-500.0,0.00015473,2]
[419879549,1775460643669,-500.0,0.00015473,2]
[419879550,1775460643680,-500.0,0.00015473,2]
[419879551,1775460643690,-500.0,0.00015473,2]
[419879552,1775460643701,-500.0,0.00015473,2]
[419879553,1775460643711,-500.0,0.00015473,2]
[419879554,1775460643721,-500.0,0.00015473,2]
[419879555,1775460643732,-500.0,0.00015473,2]
[419879556,1775460643742,-860.0,0.00015473,2]
[419879557,1775460643752,-500.0,0.00015473,2]
[419879558,1775460643762,-500.0,0.00015473,2]
[419879559,1775460643771,-500.0,0.00015473,2]
[419879560,1775460643781,-500.0,0.00015473,2]
[419879561,1775460643791,-500.0,0.00015473,2]
[419879562,1775460643802,-500.0,0.00015473,2]
[419879563,1775460643812,-500.0,0.00015473,2]
[419879564,1775460643823,-500.0,0.00015473,2]
[419879565,1775460643833,-500.0,0.00015473,2]
[419879566,1775460643843,-500.0,0.00015473,2]
[419879567,1775460643853,-500.0,0.00015473,2]
[419879568,1775460643864,-500.0,0.00015473,2]
[419879569,1775460643874,-500.0,0.00015473,2]
[419879570,1775460643884,-500.0,0.00015473,2]
[419879571,1775460643894,-844.0,0.00015473,2]
[419879572,1775460643903,-933.0,0.00015473,2]
[419879573,1775460643913,-500.0,0.00015473,2]
[419879574,1775460643924,-500.0,0.00015473,2]
[419879575,1775460643934,-500.0,0.00015473,2]
[419879576,1775460643945,-500.0,0.00015473,2]
[419879577,1775460643955,-500.0,0.00015473,2]
[419879578,1775460643965,-500.0,0.00015473,2]
[419879579,1775460643976,-500.0,0.00015473,2]
[419879580,1775460643985,-500.0,0.00015473,2]
[419879581,1775460643996,-500.0,0.00015473,2]
[419879582,1775460644006,-500.0,0.00015473,2]
[419879583,1775460644016,-500.0,0.00015473,2]
[419879584,1775460644026,-500.0,0.00015473,2]
[419879585,1775460644037,-500.0,0.00015473,2]
[419879586,1775460644047,-500.0,0.00015473,2]
[419879587,1775460644057,-500.0,0.00015473,2]
[419879588,1775460644067,-500.0,0.00015473,2]
[419879589,1775460644077,-500.0,0.00015473,2]
[419879590,1775460644088,-500.0,0.00015473,2]
[419879591,1775460644098,-500.0,0.00015473,2]
[419879592,1775460644108,-500.0,0.00015473,2]
[419879593,1775460644118,-500.0,0.00015473,2]
[419879594,1775460644128,-500.0,0.00015473,2]
[419879595,1775460644138,-500.0,0.00015473,2]
[419879596,1775460644147,-500.0,0.00015473,2]
[419879597,1775460644157,-500.0,0.00015473,2]
[419879598,1775460644167,-500.0,0.00015473,2]
[419879599,1775460644178,-730.0,0.00015473,2]
[419879600,1775460644188,-152.0,0.00015474,34]
[419879601,1775460644199,-490.0,0.00015481,2]
[419879602,1775460644209,-20200.0,0.000155,5]
[419879603,1775460644218,-490.0,0.00015504,2]
[419879604,1775460644228,-500.0,0.00015526,2]
[419879605,1775460644238,-490.0,0.00015532,2]
[419879606,1775460644247,-152.0,0.00015552,35]
[419879607,1775460644257,-632.0,0.00015563,2]
[419879608,1775460644267,-500.0,0.00015581,2]
[419879609,1775460644277,-4000.0,0.000156,5]
[419879610,1775460644287,-17203.21351983,0.00015611,2]
[419879611,1775460644296,-475.21964445,0.00015626,2]
[419879612,1775460644306,-152.0,0.00015629,36]
[419879613,1775460644316,-152.0,0.00015629,5]
[419879614,1775460644326,-500.0,0.00015636,2]
[419879615,1775460644336,-500.0,0.00015643,2]
[419879616,1775460644346,-500.0,0.00015643,2]
[419879617,1775460644356,-500.0,0.00015643,2]
[419879618,1775460644366,-526.58004734,0.0001568,2]
[419879619,1775460644376,-500.0,0.00015691,2]
[419879620,1775460644385,-177.45,0.00015693,2]
[419879621,1775460644395,-4000.0,0.000157,5]
[419879622,1775460644405,-284.15070335,0.000157,2]
[419879623,1775460644415,-200.0,0.00015744,2]
[419879624,1775460644425,-771.01748645,0.00015744,2]
[419879625,1775460644435,-181.08010149,0.00015744,2]
[419879626,1775460644445,-500.0,0.00015746,2]
[419879627,1775460644454,-632.0,0.00015752,2]
[419879628,1775460644464,-4000.0,0.000158,5]
[419879629,1775460644474,-2000.0,0.000158,2]
[419879630,1775460644485,-500.0,0.00015801,2]
[419879631,1775460644494,-500.0,0.00015811,2]
[419879632,1775460644504,-500.0,0.00015811,2]
[419879633,1775460644515,-500.0,0.00015811,2]
[419879634,1775460644525,-500.0,0.00015811,2]
[419879635,1775460644535,-195.84028331,0.00015811,2]
[419879636,1775460644544,-500.0,0.00015811,2]
[419879637,1775460644554,-500.0,0.00015811,2]
[419879638,1775460644563,-500.0,0.00015811,2]
[419879639,1775460644573,-454.40497159,0.00015811,2]
[419879640,1775460644583,-500.0,0.00015811,2]
[419879641,1775460644594,-25000.0,0.00015812,3]
[419879642,1775460644604,-25000.0,0.00015821,3]
[419879643,1775460644614,-2000.0,0.0001584,2]
[419879644,1775460644624,-2000.0,0.0001584,2]
[419879645,1775460644633,-2000.0,0.0001584,2]
[419879646,1775460644644,-350.0,0.00015847,2]
[419879647,1775460644654,-1498.68,0.00015862,2]
[419879648,1775460644664,-500.0,0.00015872,2]
[419879649,1775460644675,-500.0,0.00015872,2]
[419879650,1775460644685,-500.0,0.00015872,2]
[419879651,1775460644695,-200.0,0.00015872,2]
[419879652,1775460644705,-165.03880417,0.00015873,2]
[419879653,1775460644715,-500.0,0.00015873,2]
[419879654,1775460644725,-517.86163625,0.0001589,2]
[419879655,1775460644735,-5800.0,0.00015891,2]
[419879656,1775460644745,-1242.0,0.00015896,5]
[419879657,1775460644755,-151.0,0.00015897,2]
[419879658,1775460644766,-22311.00553988,0.000159,3]
[419879659,1775460644776,-5028.74747521,0.000159,2]
[419879660,1775460644791,-771.25252479,0.000159,2]
[419879661,1775460644801,-4000.0,0.000159,5]
[419879662,1775460644811,-17203.21351983,0.000159,2]
[419879663,1775460644821,-639.24845899,0.000159,2]
[419879664,1775460644831,-2000.0,0.000159,2]
[419879665,1775460644841,-501.46029237,0.00015973,2]
[419879666,1775460644851,-500.8742817,0.00015973,2]
[419879667,1775460644861,-500.0,0.00015973,2]
[419879668,1775460644871,-500.0,0.00015973,2]
[419879669,1775460644882,-501.96395055,0.00015973,2]
[419879670,1775460644891,-501.12672973,0.00015973,2]
[419879671,1775460644901,-500.0,0.00015973,2]
[419879672,1775460644911,-500.0,0.00015973,2]
[419879673,1775460644921,-162.57129974,0.00015973,2]
[419879674,1775460644931,-390.31346696,0.00015973,2]
[419879675,1775460644941,-500.0,0.00015973,2]
[419879676,1775460644950,-500.84960318,0.00015973,2]
[419879677,1775460644960,-502.00926321,0.00015973,2]
[419879678,1775460644971,-500.0,0.00015973,2]
[419879679,1775460644981,-224.78309712,0.00015973,2]
[419879680,1775460644990,-350.0,0.00015983,2]
[419879681,1775460645000,-154.62127153,0.00015984,2]
[419879682,1775460645012,-456.64114952,0.00015984,2]
[419879683,1775460645022,-172.40822462,0.00015984,2]
[419879684,1775460645031,-499.67523151,0.00015984,2]
[419879685,1775460645042,-184.02303495,0.00015984,2]
[419879686,1775460645052,-189.72645572,0.00015984,2]
[419879687,1775460645061,-991.39730833,0.00015984,2]
[419879688,1775460645071,-234.5079661,0.00015984,2]
[419879689,1775460645080,-1517.0,0.00015989,2]
[419879690,1775460645090,-500.0,0.00015989,2]
[419879691,1775460645099,-150.0,0.00015989,2]
[419879692,1775460645109,-150.0,0.00015989,2]
[419879693,1775460645118,-500.0,0.00015989,2]
[419879694,1775460645128,-150.0,0.00015989,2]
[419879695,1775460645138,-868.0,0.00015989,2]
[419879696,1775460645148,-868.0,0.00015989,2]
[419879697,1775460645157,-868.0,0.00015989,2]
[419879698,1775460645167,-868.0,0.00015989,2]
[419879699,1775460645176,-868.0,0.00015989,2]
[419879700,1775460645186,-868.0,0.00015989,2]
[419879701,1775460645196,-868.0,0.00015989,2]
[419879702,1775460645205,-868.0,0.00015989,2]
[419879704,1775460645215,-868.0,0.00015989,2]
[419879706,1775460645224,-868.0,0.00015989,2]
[419879708,1775460645234,-868.0,0.00015989,2]
[419879710,1775460645243,-868.0,0.00015989,2]
[419879712,1775460645253,-868.0,0.00015989,2]
[419879714,1775460645263,-868.0,0.00015989,2]
[419879715,1775460645272,-868.0,0.00015989,2]
[419879716,1775460645282,-868.0,0.00015989,2]
[419879717,1775460645292,-868.0,0.00015989,2]
[419879718,1775460645302,-868.0,0.00015989,2]
[419879719,1775460645311,-868.0,0.00015989,2]
[419879720,1775460645321,-868.0,0.00015989,2]
[419879721,1775460645331,-868.0,0.00015989,2]
[419879722,1775460645341,-868.0,0.00015989,2]
[419879724,1775460645351,-868.0,0.00015989,2]
[419879725,1775460645360,-880.0,0.00015989,2]
[419879726,1775460645370,-193.60710548,0.0001599,2]
[419879727,1775460645380,-193.60710548,0.0001599,2]
[419879728,1775460645390,-1816.2748604,0.00015994,2]
[419879729,1775460645400,-36388.1613558,0.00015994,2]
[419879731,1775460645409,-8954.0150374,0.00015994,2]
[419879732,1775460645419,-1745.2356768,0.00015994,2]
[419879734,1775460645429,-500.0,0.00015996,2]
[419879736,1775460645438,-500.0,0.00015996,2]
[419879738,1775460645448,-151.0,0.00015997,2]
[419879739,1775460645457,-151.0,0.00015997,2]
[419879740,1775460645467,-500.0,0.00015997,2]
[419879741,1775460645476,-500.0,0.00015997,2]
[419879742,1775460645486,-607.43953795,0.00015997,2]
[419879743,1775460645496,-500.0,0.00015997,2]
[419879744,1775460645505,-500.0,0.00015997,2]
[419879745,1775460645514,-106108.5243933,0.00015998,2]
[419879746,1775460645524,-500.0,0.00015999,2]
[419879747,1775460645534,-2008.1398043,0.00015999,2]
[419879748,1775460645544,-2000.0,0.00015999,2]
[419879749,1775460645553,-500.0,0.00015999,2]
[419879750,1775460645743,-500.0,0.00015999,2]
[419879751,1775460645755,-500.0,0.00015999,2]
[419879752,1775460645764,-500.0,0.00015999,2]
[419879753,1775460645773,-150.0,0.00015999,2]
[419879754,1775460645783,-150.0,0.00015999,2]
[419879755,1775460645792,-150.0,0.00015999,2]
[419879756,1775460645801,-150.0,0.00015999,2]
[419879757,1775460645810,-150.0,0.00015999,2]
[419879758,1775460645819,-246.16072156,0.00015999,2]
[419879759,1775460645829,-1800.0,0.00016,5]
[419879760,1775460645838,-155.27197355,0.00016,2]
[419879761,1775460645848,-207.58250816,0.00016,2]
[419879762,1775460645857,-154.21213872,0.00016,2]
[419879763,1775460645866,-151.68583305,0.00016,2]
[419879764,1775460645876,-486442.01526484,0.00016,2]
[419879770,1775460647749,-195.07591,0.00013931,7]
[419879771,1775460647758,-626.14,0.00014281,2]
[419879772,1775460647767,-276.320173,0.00014676,7]
[419879773,1775460647776,-4903.67108683,0.00014833,2]
[419879774,1775460647795,-2423.69356095,0.00014833,2]
[419879775,1775460648365,-386.804937,0.00011845,2]
[419879776,1775460648375,-249.892799,0.00013977,2]
[419879777,1775460648385,-970.26612766,0.00014833,2]
[419879778,1775460648397,-3918.46568199,0.00014833,2]
[419879779,1775460648408,-527.44901503,0.00014986,2]
[419879780,1775460648422,-1065.32192759,0.00014986,2]
[419879781,1775460648433,-596.61910326,0.00014986,2]
[419879782,1775460648443,-2312.60309617,0.00016,2]
[419879783,1775460648455,-937.39489326,0.00016,2]
[419879784,1775460648471,-16853.25,0.00016,2]
[419879791,1775461195277,1029.82351772,8.5e-05,3]
[419879818,1775461654433,3032.0088,8.516e-05,2]
[419879819,1775461676415,1568.9988,8.516e-05,2]
[419879843,1775461837698,-163.26,0.00012095,2]
[419879844,1775461837709,-150.0,0.00012099,2]
[419879845,1775461837719,-500.0,0.00012186,2]
[419879846,1775461837730,-1200.0,0.00012399,2]
[419879847,1775461837740,-300.0,0.00012399,2]
[419879848,1775461837750,-300.0,0.00012399,2]
[419879849,1775461837760,-1990.29367807,0.000124,2]
[419879850,1775461837770,-10994.48681177,0.000124,2]
[419879851,1775461837781,-500.32253722,0.00012473,2]
[419879852,1775461837791,-500.0,0.00012473,2]
[419879853,1775461837800,-500.5883938,0.00012473,2]
[419879854,1775461837811,-500.0,0.00012473,2]
[419879855,1775461837821,-245.86073687,0.00012473,2]
[419879856,1775461837831,-500.0,0.00012473,2]
[419879857,1775461837841,-500.0,0.00012473,2]
[419879858,1775461837851,-500.0,0.00012473,2]
[419879859,1775461837862,-375.51397884,0.00012473,2]
[419879860,1775461837872,-243.4671222,0.00012473,2]
[419879861,1775461837883,-500.26271237,0.00012473,2]
[419879862,1775461837893,-500.16623209,0.00012473,2]
[419879863,1775461837903,-160.39801811,0.00012473,2]
[419879864,1775461837913,-3247.72728719,0.00012473,2]
[419879865,1775461837923,-193.60710548,0.0001249,2]
[419879866,1775461837933,-4171.28658585,0.00012497,2]
[419879867,1775461837943,-1200.0,0.00012498,2]
[419879868,1775461837954,-500.0,0.00012499,2]
[419879869,1775461837964,-442.06595767,0.00012499,2]
[419879870,1775461837974,-500.0,0.00012499,2]
[419879871,1775461837984,-500.0,0.00012499,2]
[419879872,1775461837995,-500.0,0.00012499,2]
[419879873,1775461838006,-500.0,0.00012499,2]
[419879874,1775461838016,-500.0,0.00012499,2]
[419879875,1775461838026,-500.0,0.00012499,2]
[419879876,1775461838035,-500.0,0.00012499,2]
[419879877,1775461838046,-500.0,0.00012499,2]
[419879878,1775461838056,-500.0,0.00012499,2]
[419879879,1775461838066,-500.0,0.00012499,2]
[419879880,1775461838084,-413.0635424,0.00012499,2]
[419879881,1775461838094,-500.0,0.00012499,2]
[419879882,1775461838104,-500.0,0.00012499,2]
[419879883,1775461838114,-360.16766427,0.00012499,2]
[419879884,1775461838125,-500.0,0.00012499,2]
[419879885,1775461838135,-479.80951973,0.00012499,2]
[419879886,1775461838145,-500.0,0.00012499,2]
[419879887,1775461838156,-500.0,0.00012499,2]
[419879888,1775461838166,-584.52734753,0.00012499,2]
[419879889,1775461838177,-501.50191788,0.00012499,2]
[419879891,1775461838187,-500.0,0.00012499,2]
[419879894,1775461838198,-500.0,0.00012499,2]
[419879896,1775461838208,-500.0,0.00012499,2]
[419879897,1775461838219,-500.0,0.00012499,2]
[419879898,1775461838228,-500.0,0.00012499,2]
[419879899,1775461838239,-500.0,0.00012499,2]
[419879900,1775461838249,-500.0,0.00012499,2]
[419879901,1775461838259,-500.0,0.00012499,2]
[419879902,1775461838270,-500.0,0.00012499,2]
[419879903,1775461838280,-500.0,0.00012499,2]
[419879904,1775461838290,-500.0,0.00012499,2]
[419879905,1775461838301,-500.0,0.00012499,2]
[419879906,1775461838311,-500.0,0.00012499,2]
[419879907,1775461838321,-500.0,0.00012499,2]
[419879908,1775461838332,-500.0,0.00012499,2]
[419879909,1775461838343,-500.0,0.00012499,2]
[419879910,1775461838353,-500.0,0.00012499,2]
[419879911,1775461838364,-500.0,0.00012499,2]
[419879912,1775461838375,-500.0,0.00012499,2]
[419879913,1775461838385,-500.0,0.00012499,2]
[419879914,1775461838395,-399.75724028,0.00012499,2]
[419879915,1775461838406,-500.0,0.00012499,2]
[419879916,1775461838416,-500.0,0.00012499,2]
[419879917,1775461838426,-500.0,0.00012499,2]
[419879918,1775461838437,-500.0,0.00012499,2]
[419879919,1775461838447,-500.0,0.00012499,2]
[419879920,1775461838457,-500.0,0.00012499,2]
[419879921,1775461838467,-500.0,0.00012499,2]
[419879922,1775461838477,-500.0,0.00012499,2]
[419879923,1775461838488,-500.0,0.00012499,2]
[419879924,1775461838499,-500.0,0.00012499,2]
[419879925,1775461838510,-500.0,0.00012499,2]
[419879926,1775461838521,-500.0,0.00012499,2]
[419879927,1775461838533,-500.0,0.00012499,2]
[419879928,1775461838544,-500.0,0.00012499,2]
[419879929,1775461838554,-500.0,0.00012499,2]
[419879930,1775461838565,-587.34375758,0.00012499,2]
[419879931,1775461838578,-500.0,0.00012499,2]
[419879932,1775461838589,-500.0,0.00012499,2]
[419879933,1775461838600,-500.0,0.00012499,2]
[419879934,1775461838610,-500.0,0.00012499,2]
[419879935,1775461838621,-500.0,0.00012499,2]
[419879936,1775461838632,-500.0,0.00012499,2]
[419879937,1775461838642,-500.0,0.00012499,2]
[419879938,1775461838653,-500.0,0.00012499,2]
[419879939,1775461838663,-500.0,0.00012499,2]
[419879940,1775461838673,-500.0,0.00012499,2]
[419879941,1775461838684,-500.0,0.00012499,2]
[419879942,1775461838695,-500.0,0.00012499,2]
[419879943,1775461838705,-500.0,0.00012499,2]
[419879944,1775461838716,-500.0,0.00012499,2]
[419879945,1775461838725,-500.0,0.00012499,2]
[419879946,1775461838736,-500.0,0.00012499,2]
[419879947,1775461838746,-500.0,0.00012499,2]
[419879948,1775461838756,-500.0,0.00012499,2]
[419879949,1775461838767,-1500000.0,0.000125,2]
[419879950,1775461838778,-500.0,0.000125,2]
[419879951,1775461838788,-274601.5023,0.000125,2]
[419879952,1775461838799,-13476.04807752,0.00012599,2]
[419879953,1775461838809,-1090.314,0.00012599,2]
[419879954,1775461838819,-262.3808947,0.000126,2]
[419879955,1775461838830,-287.14623761,0.000126,2]
[419879956,1775461838840,-3545.4126,0.000126,2]
[419879957,1775461838850,-150.0,0.000126,2]
[419879958,1775461838861,-18060.03789138,0.00012693,2]